Cogmind - Beta 17.1 @@@ ROGUE MODE // 2026.09.09 @ 21:01:52 Player: TheSkyeDoctor Result: Destroyed by J2-WDB(R) with Subdweller Machine Gun Performance ------------- Evolutions (0) 0 Regions Visited (2) 400 Robots Destroyed (13) 65 Value Destroyed (313) 313 Prototype IDs (0) 0 Alien Tech Used (0) 0 Bonus (0) 0 TOTAL SCORE: 778 Bonus ------- None Cogmind --------- Core Integrity 0/250 Matter 263/300 Energy 99/100 System Corruption 0% Temperature Cool (0) Movement Rolling (110) Location -10/Subcaves Parts ------- > --- POWER (1) -------- (None) > --- PROPULSION (2) --- Subdweller Monowheel > --- UTILITY (2) ------ (None) > --- WEAPON (2) ------- (None) > --- INVENTORY (5) ---- Improved Heat Sink High-capacity Storage Unit Improved Terrain Scanner Seismic Detector Shrapnel Trap Peak State ------------ > --- POWER ------------ Ion Engine > --- PROPULSION ------- Light Treads Light Treads > --- UTILITY ---------- High-capacity Storage Unit Light Armor Plating > --- WEAPON ----------- Medium Laser Subdweller Machine Gun > --- INVENTORY -------- Ion Engine Improved Heat Sink Small Storage Unit Improved Terrain Scanner Seismic Detector Subdweller Beam Cannon Shrapnel Trap [Rating: 9] Favorites ----------- Power Ion Engine Engine Ion Engine Propulsion Light Treads Treads Light Treads Wheel Subdweller Monowheel Utility High-capacity Storage Unit Device Seismic Detector Storage High-capacity Storage Unit Protection Light Armor Plating Weapon Barrage Gun Energy Gun Medium Laser Energy Cannon Subdweller Beam Cannon Ballistic Gun Barrage Gun Build | -11 -10 -10 ------- Run | Yrd Mat Sub Slots Evolved . | . . . Power . | . . . Propulsion . | . . . Utility . | . . . Weapon . | . . . Parts Attached 18 | 7 2 9 Power 4 | 1 . 3 Engine 4 | 1 . 3 Core . | . . . Reactor . | . . . Propulsion 4 | 2 1 1 Treads 3 | 2 1 . Leg . | . . . Wheel 1 | . . 1 Hover . | . . . Flight . | . . . Utility 4 | 2 1 1 Device 1 | 1 . . Storage 2 | 1 1 . Processor . | . . . Hackware . | . . . Protection 1 | . . 1 Artifact . | . . . Weapon 6 | 2 . 4 Energy Gun 2 | 2 . . Energy Cannon 1 | . . 1 Ballistic Gun 3 | . . 3 Ballistic Cannon . | . . . Launcher . | . . . Special Weapon . | . . . Impact Weapon . | . . . Slashing Weapon . | . . . Piercing Weapon . | . . . Special Melee Weapon . | . . . Unidentified Prototypes . | . . . Parts Lost 12 | . . 12 Power 3 | . . 3 Propulsion 3 | . . 3 Utility 1 | . . 1 Weapon 5 | . . 5 Highest Loss Streak 4 | . . 4 To Critical Strikes . | . . . Average Backups 4 | 1 3 4 Power . | . 1 . Propulsion . | . . . Utility 3 | . 2 3 Weapon . | . . . Tool/Special . | . . . Unused Backups 2 | . . 2 Power . | . . . Propulsion . | . . . Utility 2 | . . 2 Weapon . | . . . Tool/Special . | . . . Average Slot Usage (%) 73 | . 100 71 Engine 13 | . 14 13 Treads 13 | . 28 12 Device 2 | . 14 1 Storage 13 | . 14 13 Protection 1 | . . 1 Energy Gun 7 | . 28 6 Ballistic Gun 19 | . . 20 Peak Build Rating 9 | 7 7 9 Average Rating 7 | 4 7 7 On Entrance 4 | . 7 7 Avg Prop Armor Cover (%) . | . . . Naked Turns 5 | . . 5 Heaviest Build 58 | 13 48 58 Greatest Support 40 | 40 40 40 Greatest Overweight (x) 16 | . 1 16 Average Overweight (x) 4 | . . 5 Largest Inventory Capacity 20 | 8 20 20 Average Capacity 19 | 7 15 19 Most Carried 8 | 2 5 8 Average Carried 5 | 1 3 5 Final Capacity 20 | 8 20 5 Final Carried 5 | 2 5 5 Class Distribution -------------------- 100% | Mutant Dominant Class ---------------- Mutant | -10/Materials Mutant | -10/Subcaves Resources | -11 -10 -10 ----------- Run | Yrd Mat Sub Matter Collected 405 | 270 20 115 Remotely . | . . . Salvage Created 583 | 151 83 349 Parts 25 | 6 5 14 Haulers Intercepted 1 | . 1 . Recyclers Shooed . | . . . Parts Field Recycled . | . . . Retrieved Matter . | . . . Parts Self-Destructed 16 | . . 16 Prevented . | . . . Parts Restored . | . . . Kills | -11 -10 -10 ------- Run | Yrd Mat Sub Combat Hostiles Destroyed 8 | . 1 7 Guns 8 | . 1 7 Classes Destroyed 6 | 2 3 1 Worker 1 | . 1 . Tunneler 2 | 2 . . Hauler 1 | . 1 . Recycler 1 | 1 . . Swarmer 1 | . 1 . Subdweller 7 | . . 7 Best Kill Streak 3 | 2 3 2 Combat Bots Only 2 | . 1 2 Max Kills in Single Turn 1 | 1 1 1 Gunslinging . | . . . Exploded . | . . . Melee . | . . . Uniques/NPCs Destroyed . | . . . Combat | -11 -10 -10 -------- Run | Yrd Mat Sub Hostile Shots Fired 105 | . 6 99 Missed 29 | . 2 27 Hits 76 | . 4 72 Projectile 76 | . 4 72 AOE 3 | . . 3 Critical Strikes 1 | . . 1 Damage Taken 1501 | . 40 1461 Core 261 | . . 261 Absorbed by Shields . | . . . Core Remaining (%) 100 | 100 . . Volleys Fired 63 | 5 6 52 Largest 2 | 2 2 2 Hottest 130 | 100 100 130 Shots Fired 109 | 10 12 87 Gun 103 | 10 12 81 Cannon 6 | . . 6 Launcher . | . . . Special . | . . . Kinetic 31 | . . 31 Thermal 78 | 10 12 56 Explosive . | . . . Electromagnetic . | . . . Robot Hit Streak 18 | 5 3 18 Robot Miss Streak 4 | 1 4 2 Penetration Max . | . . . Secondary Targets 2 | . . 2 Max Gunslinging Chain 1 | . . 1 Shots Hit Robots 83 | 7 7 69 Core Hits 25 | 4 4 17 Critical Kills . | . . . Critical Parts Destroyed . | . . . Critical Strikes 2 | 1 . 1 Burn 2 | 1 . 1 Melee Attacks . | . . . Impact . | . . . Slashing . | . . . Piercing . | . . . Sneak Attacks . | . . . Combat Hostiles . | . . . Follow-up Attacks . | . . . Damage Inflicted 932 | 87 89 756 Guns 879 | 87 89 703 Cannons 53 | . . 53 Explosions . | . . . Melee . | . . . Ramming . | . . . Kinetic 265 | . . 265 Thermal 667 | 87 89 491 Explosive . | . . . Electromagnetic . | . . . Impact . | . . . Slashing . | . . . Piercing . | . . . Highest Corruption . | . . . Average Corruption . | . . . Corruption Purged . | . . . Corruption Blocked . | . . . Overload Shots . | . . . Overflow Damage . | . . . Projectiles . | . . . Explosions . | . . . Melee . | . . . Knockbacks . | . . . Impact . | . . . Kinetic . | . . . Secondary . | . . . Self-Inflicted Damage . | . . . Shots . | . . . Rammed . | . . . Targets Rammed . | . . . Kicked . | . . . Crushed . | . . . Highest Temperature 118 | 117 118 66 Average Temperature 35 | 44 52 14 Received Heat Transfer 300 | . 6 294 Siege Activations . | . . . Martial Activations . | . . . Shielding Activations . | . . . Robots Disrupted . | . . . Combat Hostiles . | . . . Robots Corrupted . | . . . Combat Hostiles . | . . . Parts Fried . | . . . Impact Corruptions . | . . . Robots Melted . | . . . Combat Hostiles . | . . . Parts Melted 6 | 3 . 3 Heat Transferred 2035 | 333 259 1443 Parts Sabotaged . | . . . Parts Stolen . | . . . Parts Stripped . | . . . Power Chain Reactions . | . . . Alert | -11 -10 -10 ------- Run | Yrd Mat Sub Maximum Alert Level . | . . . Low Security (%) 100 | 100 100 . Level 1 . | . . . Level 2 . | . . . Level 3 . | . . . Level 4 . | . . . Level 5 . | . . . High Security . | . . . Max Security . | . . . Peak Influence 22 | 10 22 . Initial . | . . . Average 1 | . 2 . Influence Increases 92 | 15 32 45 Destroy 0b10 Robot/C 20 | . 20 . Destroy 0b10 Robot/NC 25 | 15 10 . Destroy Leader 2 | . 2 . Lose Combat Pursuer 45 | . . 45 Influence Decreases 92 | 15 32 45 Time Decay 82 | 15 32 35 Lost Part 10 | . . 10 Squads Dispatched . | . . . Investigation . | . . . Extermination . | . . . Reinforcement . | . . . Assault . | . . . Garrison . | . . . Intercept . | . . . Searches Triggered . | . . . Construction Impeded . | . . . Haulers Reinforced . | . . . Active Scanning Responses . | . . . Cargo Convoy Interrupts . | . . . Stealth | -11 -10 -10 --------- Run | Yrd Mat Sub Distress Signals 1 | . 1 . Communications Jammed . | . . . Distress Signals . | . . . Times Spotted 20 | . 7 13 Peak Tracking Total 3 | . 3 3 Tactical Retreats 3 | . . 3 Traps | -11 -10 -10 ------- Run | Yrd Mat Sub Traps Triggered 2 | . . 2 Indirectly . | . . . Trap Hack Attempts . | . . . Triggered . | . . . Disarmed . | . . . Reprogrammed . | . . . Reused . | . . . Traps Extracted . | . . . Installed . | . . . Triggered . | . . . Most Traps Carried 1 | . . 1 Machines | -11 -10 -10 ---------- Run | Yrd Mat Sub Machines Disabled . | . . . Max in Single Turn . | . . . Machines Repaired . | . . . Machines Dismantled . | . . . Machines Sabotaged . | . . . Overloaded Fab Kills . | . . . Hacking | -11 -10 -10 --------- Run | Yrd Mat Sub Machines Accessed 1 | . . 1 Terminals . | . . . Fabricators . | . . . Repair Stations . | . . . Recycling Units . | . . . Scanalyzers . | . . . Garrison Access . | . . . Total Hacks 3 | . . 3 Successful 3 | . . 3 Failed . | . . . Catastrophic . | . . . Database Lockouts . | . . . Manual . | . . . Terminals . | . . . Fabricators . | . . . Repair Stations . | . . . Recycling Units . | . . . Scanalyzers . | . . . Garrison Access . | . . . Terminal Hacks 3 | . . 3 Record 3 | . . 3 Fabricator Hacks . | . . . Repair Station Hacks . | . . . Recycling Unit Hacks . | . . . Scanalyzer . | . . . Garrison Access Hacks . | . . . Unauthorized Hacks . | . . . Terminals . | . . . Fabricators . | . . . Repair Stations . | . . . Recycling Units . | . . . Scanalyzers . | . . . Garrison Access . | . . . Data Cores Recovered 1 | . 1 . Used . | . . . Hacking Detections . | . . . Full Trace Events . | . . . Feedback Events . | . . . Feedback Blocked . | . . . Robot Schematics Acquired . | . . . Robots Built . | . . . Authchips . | . . . Time . | . . . Total Robot Build Rating . | . . . Part Schematics Acquired . | . . . Parts Built . | . . . Authchips . | . . . Time . | . . . Total Part Build Rating . | . . . Part Studies Acquired . | . . . Parts Repaired . | . . . Time . | . . . Parts Recycled . | . . . Recycled Matter . | . . . Retrieved Matter . | . . . Retrieved Components . | . . . Parts Scanalyzed . | . . . Part Schematics Acquired . | . . . Parts Damaged . | . . . Bothacking | -11 -10 -10 ------------ Run | Yrd Mat Sub Used RIF Installer . | . . . Robots Hacked . | . . . Non-combat . | . . . Combat . | . . . Robot Hacks Applied . | . . . Relay Couplers Released . | . . . Fabnet Peak Effective % . | . . . Robots Rewired . | . . . Allies Hacked . | . . . Hacks Repelled . | . . . Allies | -11 -10 -10 -------- Run | Yrd Mat Sub Total Allies . | . . . Largest Group . | . . . Highest-Rated Group . | . . . Highest-Rated Ally . | . . . Total Orders . | . . . Ally Attacks . | . . . Total Damage . | . . . Kills . | . . . Allies Corrupted . | . . . Allies Melted . | . . . Intel | -11 -10 -10 ------- Run | Yrd Mat Sub Active Infowar (turns) 878 | 24 306 548 Seismic 878 | 24 306 548 Robot Analysis Total . | . . . Derelict Logs Recovered 1 | . . 1 Drone Launches . | . . . Drone Recoveries . | . . . Exploration | -11 -10 -10 ------------- Run | Yrd Mat Sub Turns Passed 5373 | 170 306 4897 Spaces Moved 1406 | 94 140 1172 Core 333 | 6 . 327 Treads 1056 | 88 140 828 Legs . | . . . Wheels 17 | . . 17 Hover . | . . . Flight . | . . . Fastest Speed 50 | 50 160 50 Average Speed 366 | 152 204 402 Slowest Speed 850 | 160 240 850 Overloaded Moves . | . . . Propulsion Burnouts . | . . . Robots Hopped . | . . . Potential Cave-ins . | . . . Cave-ins Triggered . | . . . Exploration Rate (%) 37 | 4 32 75 Regions Visited 2 Branch Regions 1 Pre-discovered Areas 1 | . . 1 Known Exits Taken . | . . . Unknown Exits Taken 2 | 1 1 . Scrap Searched . | . . . Spaces Dug . | . . . Terrain Destroyed . | . . . Melee . | . . . Projectile . | . . . AOE . | . . . Terrain Rammed . | . . . Walls Destroyed . | . . . Machines Disabled . | . . . Actions | -11 -10 -10 --------- Run | Yrd Mat Sub Total 1515 | 107 148 1260 Wait 16 | . . 16 Move 1404 | 93 139 1172 Hop . | . . . Pick Up 7 | 2 1 4 Fast Attach 11 | 7 . 4 Attach 4 | . . 4 Detach 2 | . . 2 Swap 5 | . 2 3 Drop 3 | . . 3 Fire 63 | 5 6 52 Melee . | . . . Ram . | . . . Kick . | . . . Crush . | . . . Escape Stasis . | . . . Rewire . | . . . Trap . | . . . Miscellaneous . | . . . Route ------- -11/Scrapyard -10/Materials (discovered 3 exits: [*Mat] / [*Min] / *Sub) -10/Subcaves (discovered 3 exits: [*Mat x2] / [*Rec]) History --------- Turn | Location | Event 11 | -11/Scrapyard | Discovered new exit (range 16) 171 | -11/Scrapyard | Entered Materials 172 | -10/Materials | Met a group of wandering Federalists 215 | -10/Materials | Discovered new exit (range 9) 323 | -10/Materials | Build established: Mutant 369 | -10/Materials | Discovered new exit (range 16) 431 | -10/Materials | Discovered new exit (range 7) 477 | -10/Materials | Entered Subcaves 478 | -10/Subcaves | Continued accompanying wandering Federalists (5) 583 | -10/Subcaves | Lost 5 allies 664 | -10/Subcaves | Learned location of Zion (-6) 664 | -10/Subcaves | Met a Zionite searching for "candidates" 754 | -10/Subcaves | Shifting Twisted Machinery released Shrapnel Trap 779 | -10/Subcaves | Shifting Twisted Machinery released Sub. Beam Cannon 950 | -10/Subcaves | Visited Clippyterm 958 | -10/Subcaves | Learned Factory stockpile data 1427 | -10/Subcaves | Discovered new exit (range 14) 1471 | -10/Subcaves | Shifting Twisted Machinery released Mak. System Restoration Module 1475 | -10/Subcaves | Shifting Twisted Machinery released Sub. Power Source 1508 | -10/Subcaves | Shifting Twisted Machinery released Sub. Monowheel 1590 | -10/Subcaves | Discovered new exit (range 9) 1740 | -10/Subcaves | Learned Materials non-interactive machine intel 2046 | -10/Subcaves | Discovered new exit (range 13) 5322 | -10/Subcaves | Core integrity fell below 50% 5338 | -10/Subcaves | Core integrity fell below 20% 5374 | -10/Subcaves | Destroyed by J2-WDB(R) with Subdweller Machine Gun Last Messages --------------- 02272_ Dropped Sml. Storage Unit. 02301_ Acquired 20 matter. 02591_ Lgt. Treads destroyed. 02600_ LZ-WPS(R) destroyed. 02606_ NK-6TD(R) destroyed. 02607_ Acquired 25 matter. 02642_ Subatomizers dissect the Disposable Heat Sink. 03487_ Subatomizers dissect the Sub. Optics, destroying it. 03500_ Subatomizers dissect the Disposable Heat Sink. 03538_ Subatomizers dissect the Disposable Heat Sink, destroying it. 05313_ Barrage Gun destroyed. 05317_ Ion Engine destroyed. 05327_ Lgt. Assault Rifle destroyed. 05348_ Destroyed Scrap Shield. 05349_ Sub. Machine Gun destroyed. 05355_ Acquired Sub. Monowheel. Map ----- +----------------------------------------------------+ | ?????????????????????????# " ##?????????????? | | ?????????????????????????# ""#?????????????? | | ?????????????????????#???# &* #?????????????? | | ???????????????????### ### #?????????????? | | ???????????##??????# ] #?????????????? | | ???????????? ?????## ##????????????? | | ????????????# ??????# ### ##???????????? | | ????????????# #?????# ???# ""##??????????? | | ????????????# ######???## ""#??????????? | | ?????????#### ##### "#??????????? | | ?????????# "" ""#??????????? | | ??????????# ### """"##??????????? | | ????????# ## # ####?## ####???????????? | | ???????????????# # ###?????# " #?????????????? | | ????????????#### ######??# ## ##????????????? | | ????????##### O ## ##### """ #????????????? | | ???????## "### ##" ##????????????? | | ???????# " ######R ""## "# #????????????? | | ??????## " ##??## #### """" #????????????? | | ?????## "" #### #??### " ##????????????? | | ????##" " " ## #????## "" #????????????? | | ????#"""" ## # ##????##[ ##????????????? | | #######" ####### # ##???##""" ##???????????? | | #### #???## ## #???#" < #???????????? | | "" " ## ### #####]"" ##???????????? | | " * !" ###??# @ "" ##????????????? | | "!###"" #???# # #""####?????????????? | | "##?## """ ## #???#############????????????????? | | ##???## " " ##??????????????????????????????????? | | #?????##""####???????????????????????????????????? | | #??????####??????????????????????????????????????? | | ?????????????????????????????????????????????????? | | ?????????????????????????????????????????????????? | | ?????????????????????????????????????????????????? | | ?????????????????????????????????????????????????? | | ?????????????????????????????????????????????????? | | ?????????????????????????????????????????????????? | | ?????????????????????????????????????????????????? | | ?????????????????????????????????????????????????? | | ?????????????????????????????????????????????????? | | ?????????????????????????????????????????????????? | | ?????????????????????????????????????????????????? | | ?????????????????????????????????????????????????? | | ?????????????????????????????????????????????????? | | ?????????????????????????????????????????????????? | | ?????????????????????????????????????????????????? | | | | | | | | | +----------------------------------------------------+ Best States ------------- Heat Dissipation 25 Energy Generation 10 Energy Capacity 250 Matter Stores 300 Matter Capacity 300 Sight Range 16 Terrain Scan Density 10 Armor Coverage 150 Evasion (%) 40 Recoil Reduction 2 Item Schematics ----------------- None Robot Schematics ------------------ None Fabricated ------------ Nothing Repaired ---------- Nothing Studied --------- None Alien Tech Used ----------------- None Achievements -------------- None Challenges ------------ None Game ------ Seed RelaySuperquantumRay Manual? 0 Play Time 00:10:53 Cumulative 206.3 hours Start 2026.09.09 @ 20:53:08 End 2026.09.09 @ 21:01:52 Sessions 1 Manual Loads 0 Difficulty Rogue Special Mode None Game No. 402 Rogue 402 Adventurer 0 Explorer 0 Win Type - Total 2 Types 2/0/0/0/0/0/0/0/0/0 Lore% 62 Gallery% 62 Achievement% 48 Wizard Run 0 Options --------- Layout 2 ASCII 0 Keyboard 0 Movement Arrows Keybinds 0 Fullscreen 1 Font 24/Smallcaps Map View 50x44 Zoom Use 0% Tactical HUD 1 Map Filters NONE Filters NONE Steam 1 RUN: 1dc946cc-c015-4f8e-adf5-f07f31f93c7f